[Event "Early-Titled-Tuesday-Blitz-October-17-2023"]
[Site "Chess.com"]
[Date "2023.10.17"]
[Round "2"]
[White "Emeraldddd"]
[Black "jasonbolivar"]
[Result "1-0"]
[WhiteElo "2538"]
[BlackElo "2330"]
[TimeControl "180+1"]
[EndTime "8:16:06 PDT"]
[Termination "Emeraldddd won by resignation"]

1. e4 {[%clk 0:03:00.9]} 1... c5 {[%clk 0:01:04.5]} 2. Nf3 {[%clk 0:02:57.8]}
2... d6 {[%clk 0:01:04.8]} 3. Bb5+ {[%clk 0:02:58]} 3... Bd7 {[%clk 0:01:03.2]}
4. Bxd7+ {[%clk 0:02:58.6]} 4... Qxd7 {[%clk 0:01:04.1]} 5. O-O {[%clk 0:02:59]}
5... Nc6 {[%clk 0:01:04]} 6. c3 {[%clk 0:02:59.1]} 6... Nf6 {[%clk 0:01:01.2]}
7. d4 {[%clk 0:02:59.5]} 7... cxd4 {[%clk 0:01:01.1]} 8. cxd4 {[%clk 0:03:00.4]}
8... Nxe4 {[%clk 0:01:01.5]} 9. d5 {[%clk 0:02:58.8]} 9... Nb8 {[%clk
0:00:58.7]} 10. Re1 {[%clk 0:02:57.7]} 10... Nf6 {[%clk 0:00:59.1]} 11. Bg5
{[%clk 0:02:54.1]} 11... Qd8 {[%clk 0:00:46.6]} 12. Nc3 {[%clk 0:02:42.7]} 12...
Nbd7 {[%clk 0:00:42.9]} 13. Qa4 {[%clk 0:02:43.3]} 13... a6 {[%clk 0:00:38.4]}
14. Bxf6 {[%clk 0:02:27.3]} 14... gxf6 {[%clk 0:00:37.3]} 15. Nd4 {[%clk
0:02:24.2]} 15... Bg7 {[%clk 0:00:15.5]} 16. Nf5 {[%clk 0:02:22.8]} 16... O-O
{[%clk 0:00:16.1]} 17. Qg4 {[%clk 0:02:23.4]} 1-0

[Event "Early-Titled-Tuesday-Blitz-October-17-2023"]
[Site "Chess.com"]
[Date "2023.10.17"]
[Round "2"]
[White "beccrajoy"]
[Black "UK_23"]
[Result "0-1"]
[WhiteElo "1981"]
[BlackElo "2419"]
[TimeControl "180+1"]
[EndTime "8:16:19 PDT"]
[Termination "UK_23 won by checkmate"]

1. e4 {[%clk 0:03:00.9]} 1... e5 {[%clk 0:02:59.7]} 2. Nf3 {[%clk 0:03:01.2]}
2... Nc6 {[%clk 0:03:00.3]} 3. Bb5 {[%clk 0:03:01.3]} 3... a6 {[%clk 0:02:58.3]}
4. Ba4 {[%clk 0:03:01.1]} 4... Nf6 {[%clk 0:02:57.9]} 5. Qe2 {[%clk 0:03:01]}
5... b5 {[%clk 0:02:54.9]} 6. Bb3 {[%clk 0:03:00.6]} 6... Bc5 {[%clk 0:02:55.3]}
7. d3 {[%clk 0:02:53.8]} 7... O-O {[%clk 0:02:55.2]} 8. Bg5 {[%clk 0:02:52.6]}
8... h6 {[%clk 0:02:54.6]} 9. Bh4 {[%clk 0:02:52.4]} 9... Be7 {[%clk 0:02:49.6]}
10. c3 {[%clk 0:02:52.2]} 10... d6 {[%clk 0:02:48.6]} 11. O-O {[%clk 0:02:50.1]}
11... Nh5 {[%clk 0:02:44.6]} 12. Bxe7 {[%clk 0:02:49.4]} 12... Qxe7 {[%clk
0:02:45.5]} 13. Nbd2 {[%clk 0:02:42.3]} 13... Nf4 {[%clk 0:02:42.6]} 14. Qe3
{[%clk 0:02:42]} 14... Na5 {[%clk 0:02:32.4]} 15. Bc2 {[%clk 0:02:41]} 15... c5
{[%clk 0:02:32.5]} 16. a4 {[%clk 0:02:28.4]} 16... Bd7 {[%clk 0:02:27.9]} 17.
axb5 {[%clk 0:02:15.4]} 17... axb5 {[%clk 0:02:28.8]} 18. Nb3 {[%clk 0:02:09.3]}
18... Nc6 {[%clk 0:02:14.8]} 19. Rfe1 {[%clk 0:01:58.4]} 19... b4 {[%clk
0:01:49.4]} 20. Nbd2 {[%clk 0:01:52.5]} 20... bxc3 {[%clk 0:01:43.9]} 21. bxc3
{[%clk 0:01:53.4]} 21... Rxa1 {[%clk 0:01:27.9]} 22. Rxa1 {[%clk 0:01:54.3]}
22... Rb8 {[%clk 0:01:28.3]} 23. Nc4 {[%clk 0:01:53]} 23... Be6 {[%clk
0:01:24.5]} 24. Nfd2 {[%clk 0:01:43.5]} 24... Qg5 {[%clk 0:01:21.4]} 25. Ra6
{[%clk 0:01:18.4]} 25... Qxg2# {[%clk 0:01:18.4]} 0-1

[Event "Early-Titled-Tuesday-Blitz-October-17-2023"]
[Site "Chess.com"]
[Date "2023.10.17"]
[Round "2"]
[White "Macron20hTF1"]
[Black "Irina_Mikhaylova"]
[Result "1-0"]
[WhiteElo "2595"]
[BlackElo "2304"]
[TimeControl "180+1"]
[EndTime "8:16:24 PDT"]
[Termination "Macron20hTF1 won by resignation"]

1. Nf3 {[%clk 0:03:00.9]} 1... Nf6 {[%clk 0:02:59.9]} 2. c4 {[%clk 0:03:00.9]}
2... g6 {[%clk 0:03:00.3]} 3. Nc3 {[%clk 0:03:01.6]} 3... d5 {[%clk 0:03:00.8]}
4. cxd5 {[%clk 0:03:01.7]} 4... Nxd5 {[%clk 0:03:01]} 5. e4 {[%clk 0:03:02.5]}
5... Nxc3 {[%clk 0:03:00.9]} 6. dxc3 {[%clk 0:03:03.4]} 6... Qxd1+ {[%clk
0:03:00.1]} 7. Kxd1 {[%clk 0:03:04.3]} 7... f6 {[%clk 0:03:00.2]} 8. h4 {[%clk
0:03:03.7]} 8... h5 {[%clk 0:02:59.7]} 9. Bf4 {[%clk 0:03:01.2]} 9... e5 {[%clk
0:02:59.6]} 10. Be3 {[%clk 0:02:58.8]} 10... Be6 {[%clk 0:02:59.7]} 11. Nd2
{[%clk 0:02:57.9]} 11... Nd7 {[%clk 0:02:59.4]} 12. Kc2 {[%clk 0:02:57.9]} 12...
Bc5 {[%clk 0:02:58.9]} 13. Re1 {[%clk 0:02:54.5]} 13... Ke7 {[%clk 0:02:54.3]}
14. a4 {[%clk 0:02:52.2]} 14... a5 {[%clk 0:02:53.4]} 15. Bc4 {[%clk 0:02:44.1]}
15... Bxe3 {[%clk 0:02:45.8]} 16. Rxe3 {[%clk 0:02:45]} 16... Nb6 {[%clk
0:02:46.1]} 17. Bxe6 {[%clk 0:02:40.6]} 17... Kxe6 {[%clk 0:02:46.5]} 18. Rg3
{[%clk 0:02:39.6]} 18... Kf7 {[%clk 0:02:28.4]} 19. b3 {[%clk 0:02:30.8]} 19...
Rad8 {[%clk 0:02:14.6]} 20. Rf1 {[%clk 0:02:27.2]} 20... Ke6 {[%clk 0:02:11.8]}
21. Rxg6 {[%clk 0:02:25.8]} 21... Rdg8 {[%clk 0:02:12.1]} 22. Rxg8 {[%clk
0:02:25.1]} 22... Rxg8 {[%clk 0:02:12.6]} 23. g3 {[%clk 0:02:26]} 23... Nd7
{[%clk 0:02:05.1]} 24. Nc4 {[%clk 0:02:24.7]} 24... b6 {[%clk 0:02:05.6]} 25.
Ne3 {[%clk 0:02:24.2]} 25... Nc5 {[%clk 0:01:43.6]} 26. Nd5 {[%clk 0:02:24.7]}
26... c6 {[%clk 0:01:41]} 27. Nxb6 {[%clk 0:02:24.5]} 27... Nxe4 {[%clk
0:01:41.1]} 28. Nc4 {[%clk 0:02:22.2]} 28... Ra8 {[%clk 0:01:40.5]} 29. Rd1
{[%clk 0:02:13.3]} 29... Nxf2 {[%clk 0:01:27.4]} 30. Rd6+ {[%clk 0:02:13.2]}
30... Kf5 {[%clk 0:01:27.9]} 31. Rxc6 {[%clk 0:02:10.8]} 31... Ne4 {[%clk
0:01:26.8]} 32. Ne3+ {[%clk 0:02:08.8]} 32... Kg6 {[%clk 0:01:26.7]} 33. Nd5
{[%clk 0:02:00.9]} 33... Rf8 {[%clk 0:01:21.1]} 34. b4 {[%clk 0:01:57.6]} 34...
Nxg3 {[%clk 0:01:17.2]} 35. bxa5 {[%clk 0:01:56.6]} 35... e4 {[%clk 0:01:17.7]}
36. a6 {[%clk 0:01:56]} 36... Re8 {[%clk 0:01:10.9]} 37. Nxf6 {[%clk 0:01:54.2]}
37... Ra8 {[%clk 0:01:07.5]} 38. Nxe4+ {[%clk 0:01:54.4]} 1-0

[Event "Early-Titled-Tuesday-Blitz-October-17-2023"]
[Site "Chess.com"]
[Date "2023.10.17"]
[Round "2"]
[White "BasilSmash"]
[Black "Ariadna_Atreides"]
[Result "1-0"]
[WhiteElo "2482"]
[BlackElo "2187"]
[TimeControl "180+1"]
[EndTime "8:16:26 PDT"]
[Termination "BasilSmash won by resignation"]

1. e4 {[%clk 0:03:00.9]} 1... c6 {[%clk 0:02:59.7]} 2. d4 {[%clk 0:02:52.7]}
2... d5 {[%clk 0:02:59.8]} 3. Nd2 {[%clk 0:02:53]} 3... dxe4 {[%clk 0:02:59.5]}
4. Nxe4 {[%clk 0:02:53.9]} 4... Nf6 {[%clk 0:02:59.8]} 5. Nxf6+ {[%clk
0:02:53.7]} 5... exf6 {[%clk 0:03:00.7]} 6. Be3 {[%clk 0:02:47.6]} 6... Bd6
{[%clk 0:02:58.9]} 7. Bd3 {[%clk 0:02:43.7]} 7... O-O {[%clk 0:02:56]} 8. Ne2
{[%clk 0:02:37.3]} 8... Re8 {[%clk 0:02:50.8]} 9. O-O {[%clk 0:02:37.4]} 9...
Nd7 {[%clk 0:02:49.9]} 10. c4 {[%clk 0:02:37]} 10... Nf8 {[%clk 0:02:48.3]} 11.
Qc2 {[%clk 0:02:36.6]} 11... h5 {[%clk 0:02:46.1]} 12. Rfe1 {[%clk 0:02:27.6]}
12... g6 {[%clk 0:02:36.3]} 13. Rad1 {[%clk 0:02:26.3]} 13... Kg7 {[%clk
0:02:35.3]} 14. Nc3 {[%clk 0:02:21.3]} 14... f5 {[%clk 0:02:32.4]} 15. c5 {[%clk
0:02:16.8]} 15... Bc7 {[%clk 0:02:31.9]} 16. d5 {[%clk 0:02:15]} 16... cxd5
{[%clk 0:01:54.2]} 17. Bc4 {[%clk 0:02:13.1]} 17... Ne6 {[%clk 0:01:29.7]} 18.
Nxd5 {[%clk 0:02:07.7]} 18... f4 {[%clk 0:01:14.2]} 19. Qc3+ {[%clk 0:01:59.6]}
19... Kh6 {[%clk 0:00:53.6]} 20. Nxf4 {[%clk 0:01:55.1]} 20... Qxd1 {[%clk
0:00:35.1]} 21. Nxe6+ {[%clk 0:01:46.1]} 1-0

[Event "Early-Titled-Tuesday-Blitz-October-17-2023"]
[Site "Chess.com"]
[Date "2023.10.17"]
[Round "2"]
[White "atbenina64"]
[Black "Happy1712Drummer"]
[Result "1-0"]
[WhiteElo "2714"]
[BlackElo "2383"]
[TimeControl "180+1"]
[EndTime "8:16:30 PDT"]
[Termination "atbenina64 won by resignation"]

1. Nf3 {[%clk 0:03:00.9]} 1... c5 {[%clk 0:02:59.3]} 2. c4 {[%clk 0:03:00.7]}
2... Nc6 {[%clk 0:02:59.1]} 3. Nc3 {[%clk 0:03:01.4]} 3... g6 {[%clk 0:02:57.7]}
4. e3 {[%clk 0:03:01.6]} 4... e5 {[%clk 0:02:41.9]} 5. d4 {[%clk 0:03:00]} 5...
exd4 {[%clk 0:02:39.7]} 6. exd4 {[%clk 0:03:00.9]} 6... cxd4 {[%clk 0:02:40]} 7.
Nxd4 {[%clk 0:03:01.2]} 7... Bg7 {[%clk 0:02:40.7]} 8. Ndb5 {[%clk 0:02:57.5]}
8... Be5 {[%clk 0:01:45.9]} 9. Ne4 {[%clk 0:02:29]} 9... Qe7 {[%clk 0:01:40.2]}
10. Be2 {[%clk 0:02:23.5]} 10... a6 {[%clk 0:01:34.3]} 11. Nbd6+ {[%clk
0:02:19.6]} 11... Bxd6 {[%clk 0:01:30.5]} 12. Nxd6+ {[%clk 0:02:18.8]} 12... Kf8
{[%clk 0:01:29.1]} 13. O-O {[%clk 0:02:18.2]} 13... h6 {[%clk 0:01:27.1]} 14.
Re1 {[%clk 0:02:16.8]} 14... Qf6 {[%clk 0:01:22]} 15. Bd2 {[%clk 0:02:06.4]}
15... Rh7 {[%clk 0:00:52.9]} 16. Bc3 {[%clk 0:02:05.1]} 16... Qg5 {[%clk
0:00:51.3]} 17. Bf3 {[%clk 0:02:00]} 17... Nge7 {[%clk 0:00:50.7]} 18. Ne4
{[%clk 0:01:56.2]} 18... Qf5 {[%clk 0:00:41.8]} 19. Nf6 {[%clk 0:01:53.5]} 19...
Rg7 {[%clk 0:00:32.5]} 20. Qd6 {[%clk 0:01:48.8]} 1-0

[Event "Early-Titled-Tuesday-Blitz-October-17-2023"]
[Site "Chess.com"]
[Date "2023.10.17"]
[Round "2"]
[White "Alphafischer2019"]
[Black "seopie"]
[Result "1-0"]
[WhiteElo "2599"]
[BlackElo "2843"]
[TimeControl "180+1"]
[EndTime "8:16:44 PDT"]
[Termination "Alphafischer2019 won by resignation"]

1. e4 {[%clk 0:03:00.9]} 1... h6 {[%clk 0:03:00.4]} 2. d4 {[%clk 0:03:00]} 2...
e6 {[%clk 0:03:00.6]} 3. Nc3 {[%clk 0:02:59.3]} 3... d5 {[%clk 0:02:59.7]} 4.
Nf3 {[%clk 0:02:55.9]} 4... Nf6 {[%clk 0:02:55.2]} 5. exd5 {[%clk 0:02:47.5]}
5... Nxd5 {[%clk 0:02:50.5]} 6. Nxd5 {[%clk 0:02:45.6]} 6... Qxd5 {[%clk
0:02:48.3]} 7. Bd3 {[%clk 0:02:41.7]} 7... b6 {[%clk 0:02:44.1]} 8. O-O {[%clk
0:02:39.3]} 8... Bb7 {[%clk 0:02:43.2]} 9. Re1 {[%clk 0:02:39.9]} 9... Be7
{[%clk 0:02:41.8]} 10. Be4 {[%clk 0:02:38.1]} 10... Qxe4 {[%clk 0:02:40.7]} 11.
Rxe4 {[%clk 0:02:37.7]} 11... Bxe4 {[%clk 0:02:41.6]} 12. Qe2 {[%clk 0:02:38]}
12... Bb7 {[%clk 0:02:40.3]} 13. Bf4 {[%clk 0:02:38.3]} 13... c6 {[%clk
0:02:31.4]} 14. Ne5 {[%clk 0:02:28.6]} 14... O-O {[%clk 0:02:29.9]} 15. Qg4
{[%clk 0:02:22.9]} 15... Kh7 {[%clk 0:02:29.4]} 16. Re1 {[%clk 0:02:15.8]} 16...
Na6 {[%clk 0:02:23.4]} 17. Re3 {[%clk 0:02:00.3]} 17... Rad8 {[%clk 0:02:23.2]}
18. Rg3 {[%clk 0:01:58.3]} 18... g5 {[%clk 0:02:22.1]} 19. Be3 {[%clk
0:01:52.8]} 19... c5 {[%clk 0:02:19.1]} 20. c3 {[%clk 0:01:51.5]} 20... cxd4
{[%clk 0:02:18.9]} 21. Bxd4 {[%clk 0:01:52.3]} 21... Bf6 {[%clk 0:02:11.1]} 22.
h3 {[%clk 0:01:34.8]} 22... Nc5 {[%clk 0:02:04.7]} 23. Re3 {[%clk 0:01:17.2]}
23... Bg7 {[%clk 0:01:58.7]} 24. h4 {[%clk 0:01:15.3]} 24... gxh4 {[%clk
0:01:43.6]} 25. Qxh4 {[%clk 0:01:09.7]} 25... Rd5 {[%clk 0:01:43.7]} 26. Ng4
{[%clk 0:01:06.4]} 26... f6 {[%clk 0:01:27.8]} 27. Bxf6 {[%clk 0:00:56.7]} 1-0

[Event "Early-Titled-Tuesday-Blitz-October-17-2023"]
[Site "Chess.com"]
[Date "2023.10.17"]
[Round "2"]
[White "CuattroPrincesses"]
[Black "chrisclaireredfield"]
[Result "0-1"]
[WhiteElo "2283"]
[BlackElo "2515"]
[TimeControl "180+1"]
[EndTime "8:16:45 PDT"]
[Termination "chrisclaireredfield won by resignation"]

1. e4 {[%clk 0:03:00.9]} 1... e5 {[%clk 0:02:58.5]} 2. Nf3 {[%clk 0:02:55.5]}
2... Nf6 {[%clk 0:02:58.4]} 3. Nxe5 {[%clk 0:02:54.8]} 3... d6 {[%clk
0:02:58.6]} 4. Nf3 {[%clk 0:02:54.6]} 4... Nxe4 {[%clk 0:02:59]} 5. Nc3 {[%clk
0:02:52.5]} 5... Nxc3 {[%clk 0:02:58.8]} 6. dxc3 {[%clk 0:02:53.4]} 6... Be7
{[%clk 0:02:59]} 7. Be3 {[%clk 0:02:51.8]} 7... O-O {[%clk 0:02:59.5]} 8. Qd2
{[%clk 0:02:52]} 8... Nd7 {[%clk 0:02:59.9]} 9. Bc4 {[%clk 0:02:50.4]} 9... Nf6
{[%clk 0:02:58.9]} 10. O-O-O {[%clk 0:02:49.5]} 10... c6 {[%clk 0:02:57.7]} 11.
Rhe1 {[%clk 0:02:43.1]} 11... d5 {[%clk 0:02:57.6]} 12. Bd3 {[%clk 0:02:43.2]}
12... Bg4 {[%clk 0:02:56.1]} 13. Be2 {[%clk 0:02:27.5]} 13... Ne4 {[%clk
0:02:55.4]} 14. Qd3 {[%clk 0:02:25.1]} 14... Bf5 {[%clk 0:02:43.6]} 15. Qd4
{[%clk 0:02:10.5]} 15... Bc5 {[%clk 0:02:39.3]} 16. Qe5 {[%clk 0:02:10.7]} 16...
Bxe3+ {[%clk 0:02:33.4]} 17. fxe3 {[%clk 0:02:11.6]} 17... Bg6 {[%clk
0:02:33.8]} 18. Bd3 {[%clk 0:01:54.1]} 18... Re8 {[%clk 0:02:33.3]} 19. Qf4
{[%clk 0:01:49.4]} 19... Qe7 {[%clk 0:02:23.8]} 20. g4 {[%clk 0:01:24.1]} 20...
a5 {[%clk 0:02:00.7]} 21. h4 {[%clk 0:01:23.1]} 21... h6 {[%clk 0:01:41.1]} 22.
Nd4 {[%clk 0:01:03.9]} 22... Qxh4 {[%clk 0:01:38.4]} 23. Nf5 {[%clk 0:00:56.4]}
23... Qg5 {[%clk 0:01:38.3]} 24. Bxe4 {[%clk 0:00:46.3]} 24... Rxe4 {[%clk
0:01:37.8]} 0-1

[Event "Early-Titled-Tuesday-Blitz-October-17-2023"]
[Site "Chess.com"]
[Date "2023.10.17"]
[Round "2"]
[White "sokidze"]
[Black "ajgreen"]
[Result "1-0"]
[WhiteElo "2777"]
[BlackElo "2387"]
[TimeControl "180+1"]
[EndTime "8:16:58 PDT"]
[Termination "sokidze won by resignation"]

1. e4 {[%clk 0:03:00.9]} 1... c5 {[%clk 0:03:00]} 2. Nf3 {[%clk 0:03:00.5]} 2...
e6 {[%clk 0:03:00.6]} 3. d4 {[%clk 0:03:00.3]} 3... cxd4 {[%clk 0:03:01.5]} 4.
Nxd4 {[%clk 0:03:00.4]} 4... Nc6 {[%clk 0:03:02.3]} 5. Nc3 {[%clk 0:03:00.2]}
5... Nf6 {[%clk 0:03:02.9]} 6. Nxc6 {[%clk 0:03:00.1]} 6... bxc6 {[%clk
0:03:03.8]} 7. e5 {[%clk 0:03:00.4]} 7... Nd5 {[%clk 0:03:04.5]} 8. Ne4 {[%clk
0:03:00.8]} 8... Qc7 {[%clk 0:03:05]} 9. f4 {[%clk 0:03:01.1]} 9... Rb8 {[%clk
0:03:05.5]} 10. c4 {[%clk 0:02:51.6]} 10... Bb4+ {[%clk 0:03:05.4]} 11. Ke2
{[%clk 0:02:48.5]} 11... O-O {[%clk 0:03:04.8]} 12. a3 {[%clk 0:02:29.2]} 12...
Be7 {[%clk 0:02:54.2]} 13. cxd5 {[%clk 0:02:21.2]} 13... cxd5 {[%clk 0:02:55.1]}
14. Nd6 {[%clk 0:02:21.1]} 14... f6 {[%clk 0:02:43.7]} 15. Ke1 {[%clk
0:02:02.1]} 15... fxe5 {[%clk 0:02:38.1]} 16. fxe5 {[%clk 0:02:01]} 16... Qc5
{[%clk 0:02:23.5]} 17. Qd2 {[%clk 0:01:41]} 17... d4 {[%clk 0:02:16.9]} 18. Nxc8
{[%clk 0:01:33.9]} 18... Rbxc8 {[%clk 0:02:10.4]} 19. Bd3 {[%clk 0:01:33]} 19...
Qxe5+ {[%clk 0:02:07.4]} 20. Qe2 {[%clk 0:01:31.6]} 20... Bh4+ {[%clk
0:01:45.9]} 21. g3 {[%clk 0:01:21]} 21... Bxg3+ {[%clk 0:01:29.6]} 22. hxg3
{[%clk 0:01:20.9]} 22... Qxg3+ {[%clk 0:01:30.5]} 23. Kd1 {[%clk 0:01:21.1]}
23... Rf3 {[%clk 0:01:12.5]} 24. Bxh7+ {[%clk 0:01:13.9]} 24... Kf7 {[%clk
0:01:11.9]} 25. Be4 {[%clk 0:01:09.2]} 25... Rf2 {[%clk 0:00:53.9]} 26. Rf1
{[%clk 0:01:06.3]} 1-0

[Event "Early-Titled-Tuesday-Blitz-October-17-2023"]
[Site "Chess.com"]
[Date "2023.10.17"]
[Round "2"]
[White "chessfatbear"]
[Black "DrCeltic"]
[Result "1/2-1/2"]
[WhiteElo "2798"]
[BlackElo "2569"]
[TimeControl "180+1"]
[EndTime "8:17:08 PDT"]
[Termination "Game drawn by agreement"]

1. e4 {[%clk 0:02:55.9]} 1... c5 {[%clk 0:02:59.6]} 2. Nf3 {[%clk 0:02:56.2]}
2... e6 {[%clk 0:03:00.1]} 3. c3 {[%clk 0:02:54.9]} 3... Nf6 {[%clk 0:03:00.5]}
4. e5 {[%clk 0:02:53.8]} 4... Nd5 {[%clk 0:03:01.1]} 5. d4 {[%clk 0:02:54.7]}
5... cxd4 {[%clk 0:03:02]} 6. cxd4 {[%clk 0:02:55]} 6... b6 {[%clk 0:03:01.4]}
7. a3 {[%clk 0:02:51.9]} 7... Be7 {[%clk 0:03:00.3]} 8. Bd3 {[%clk 0:02:52]}
8... Ba6 {[%clk 0:03:00.2]} 9. O-O {[%clk 0:02:50.8]} 9... Bxd3 {[%clk
0:02:55.6]} 10. Qxd3 {[%clk 0:02:51.7]} 10... O-O {[%clk 0:02:55.1]} 11. Bd2
{[%clk 0:02:43.2]} 11... d6 {[%clk 0:02:42.5]} 12. Nc3 {[%clk 0:02:38.6]} 12...
Nxc3 {[%clk 0:02:42.8]} 13. Qxc3 {[%clk 0:02:20.4]} 13... Nd7 {[%clk 0:02:41.4]}
14. Rac1 {[%clk 0:02:14.3]} 14... Rc8 {[%clk 0:02:36.9]} 15. Qe3 {[%clk
0:02:00.4]} 15... dxe5 {[%clk 0:02:16.3]} 16. dxe5 {[%clk 0:02:00.1]} 16... Bc5
{[%clk 0:02:12.6]} 17. Qe4 {[%clk 0:01:58]} 17... Be7 {[%clk 0:01:52.2]} 18. Qg4
{[%clk 0:01:47.6]} 18... Kh8 {[%clk 0:01:47.9]} 19. h4 {[%clk 0:01:46.3]} 19...
Nc5 {[%clk 0:01:40.4]} 20. Bg5 {[%clk 0:01:38.2]} 20... h6 {[%clk 0:01:37.3]}
21. Rfd1 {[%clk 0:01:33.3]} 21... Qe8 {[%clk 0:01:32.9]} 22. b4 {[%clk 0:01:22]}
22... hxg5 {[%clk 0:01:15.6]} 23. bxc5 {[%clk 0:01:21.9]} 23... gxh4 {[%clk
0:01:09.7]} 24. c6 {[%clk 0:01:14.8]} 24... Rxc6 {[%clk 0:01:01.1]} 25. Nxh4
{[%clk 0:01:05.8]} 1/2-1/2

[Event "Early-Titled-Tuesday-Blitz-October-17-2023"]
[Site "Chess.com"]
[Date "2023.10.17"]
[Round "2"]
[White "jup1978"]
[Black "Eagle_2019"]
[Result "1/2-1/2"]
[WhiteElo "2554"]
[BlackElo "2732"]
[TimeControl "180+1"]
[EndTime "8:17:11 PDT"]
[Termination "Game drawn by repetition"]

1. e4 {[%clk 0:03:00.9]} 1... e6 {[%clk 0:02:58.3]} 2. d4 {[%clk 0:03:00.1]}
2... d5 {[%clk 0:02:57.5]} 3. Nd2 {[%clk 0:03:00.5]} 3... dxe4 {[%clk
0:02:56.1]} 4. Nxe4 {[%clk 0:03:01.4]} 4... Nd7 {[%clk 0:02:56.2]} 5. Nf3 {[%clk
0:02:59.9]} 5... Ngf6 {[%clk 0:02:56.2]} 6. Nxf6+ {[%clk 0:02:59.4]} 6... Nxf6
{[%clk 0:02:56.4]} 7. c3 {[%clk 0:02:59.8]} 7... c5 {[%clk 0:02:50.2]} 8. Ne5
{[%clk 0:02:58.8]} 8... a6 {[%clk 0:02:48.4]} 9. Qa4+ {[%clk 0:02:50.3]} 9...
Nd7 {[%clk 0:02:40.3]} 10. Be3 {[%clk 0:02:34.6]} 10... Qc7 {[%clk 0:02:23.5]}
11. Bb5 {[%clk 0:02:20.9]} 11... cxd4 {[%clk 0:02:08.4]} 12. Bxd7+ {[%clk
0:01:55.7]} 12... Bxd7 {[%clk 0:02:07.4]} 13. Nxd7 {[%clk 0:01:55.3]} 13... Qxd7
{[%clk 0:02:06.3]} 14. Qxd7+ {[%clk 0:01:53.2]} 14... Kxd7 {[%clk 0:02:06.9]}
15. Bxd4 {[%clk 0:01:52.2]} 15... f6 {[%clk 0:02:03]} 16. O-O-O {[%clk
0:01:49.7]} 16... Kc6 {[%clk 0:01:58]} 17. a4 {[%clk 0:01:49]} 17... e5 {[%clk
0:01:54.7]} 18. Be3 {[%clk 0:01:48.7]} 18... Bd6 {[%clk 0:01:49.1]} 19. Kc2
{[%clk 0:01:47.8]} 19... b5 {[%clk 0:01:45.6]} 20. axb5+ {[%clk 0:01:44.3]}
20... axb5 {[%clk 0:01:45]} 21. Ra1 {[%clk 0:01:44.9]} 21... f5 {[%clk
0:01:41.3]} 22. f3 {[%clk 0:01:42.2]} 22... Rhe8 {[%clk 0:01:38.3]} 23. h3
{[%clk 0:01:36.6]} 23... Bc7 {[%clk 0:01:27.2]} 24. Rhd1 {[%clk 0:01:30.6]}
24... Rxa1 {[%clk 0:01:09.1]} 25. Rxa1 {[%clk 0:01:31.5]} 25... e4 {[%clk
0:00:59]} 26. fxe4 {[%clk 0:01:32.4]} 26... Rxe4 {[%clk 0:00:58.7]} 27. Kd3
{[%clk 0:01:30.6]} 27... Re8 {[%clk 0:00:53.8]} 28. Ra6+ {[%clk 0:01:29.5]}
28... Kb7 {[%clk 0:00:53.3]} 29. Ra7+ {[%clk 0:01:25.1]} 29... Kb8 {[%clk
0:00:51.5]} 30. Ra1 {[%clk 0:01:23.9]} 30... Kb7 {[%clk 0:00:46.4]} 31. Ra7+
{[%clk 0:01:22.5]} 31... Kb8 {[%clk 0:00:42.7]} 32. Ra1 {[%clk 0:01:22.1]} 32...
Kb7 {[%clk 0:00:41.7]} 33. Ra7+ {[%clk 0:01:21.5]} 1/2-1/2

[Event "Early-Titled-Tuesday-Blitz-October-17-2023"]
[Site "Chess.com"]
[Date "2023.10.17"]
[Round "2"]
[White "crazy_m_attack"]
[Black "LUISMIGUELOV"]
[Result "1-0"]
[WhiteElo "2445"]
[BlackElo "2140"]
[TimeControl "180+1"]
[EndTime "8:17:11 PDT"]
[Termination "crazy_m_attack won by resignation"]

1. e4 {[%clk 0:03:00.9]} 1... c6 {[%clk 0:02:59]} 2. d4 {[%clk 0:02:53.8]} 2...
d5 {[%clk 0:02:59.2]} 3. Nc3 {[%clk 0:02:54.1]} 3... dxe4 {[%clk 0:02:58.6]} 4.
Nxe4 {[%clk 0:02:55]} 4... Bf5 {[%clk 0:02:58.2]} 5. Ng3 {[%clk 0:02:54.8]} 5...
Bg6 {[%clk 0:02:58.7]} 6. h4 {[%clk 0:02:54.3]} 6... h6 {[%clk 0:02:58.7]} 7.
Nf3 {[%clk 0:02:54.7]} 7... Nd7 {[%clk 0:02:57.9]} 8. h5 {[%clk 0:02:54.6]} 8...
Bh7 {[%clk 0:02:57.4]} 9. Bd3 {[%clk 0:02:54.7]} 9... Bxd3 {[%clk 0:02:57.9]}
10. Qxd3 {[%clk 0:02:55.2]} 10... e6 {[%clk 0:02:58.1]} 11. Bd2 {[%clk
0:02:53.9]} 11... Ngf6 {[%clk 0:02:55.9]} 12. O-O-O {[%clk 0:02:50.9]} 12... Be7
{[%clk 0:02:52.8]} 13. Ne4 {[%clk 0:02:47.4]} 13... Nxe4 {[%clk 0:02:51.7]} 14.
Qxe4 {[%clk 0:02:47.2]} 14... Qb6 {[%clk 0:02:46.5]} 15. Ne5 {[%clk 0:02:30.5]}
15... Nxe5 {[%clk 0:02:43.6]} 16. dxe5 {[%clk 0:02:30.9]} 16... O-O-O {[%clk
0:02:41.4]} 17. Be3 {[%clk 0:02:27.2]} 17... Qa5 {[%clk 0:02:33.8]} 18. Kb1
{[%clk 0:02:21.7]} 18... Rd5 {[%clk 0:02:32.2]} 19. Rxd5 {[%clk 0:02:18.6]}
19... cxd5 {[%clk 0:02:25.8]} 20. Qg4 {[%clk 0:02:17.6]} 20... Rg8 {[%clk
0:02:20]} 21. Rd1 {[%clk 0:02:17.5]} 21... Qb5 {[%clk 0:02:10.9]} 22. Rd3 {[%clk
0:02:13.1]} 22... Kb8 {[%clk 0:02:06.9]} 23. a3 {[%clk 0:02:11.8]} 23... Bg5
{[%clk 0:01:49.9]} 24. Bxg5 {[%clk 0:02:09.7]} 24... hxg5 {[%clk 0:01:50]} 25.
Qxg5 {[%clk 0:02:10.2]} 25... a6 {[%clk 0:01:43.5]} 26. Qe7 {[%clk 0:02:09.6]}
26... Qe8 {[%clk 0:01:39.4]} 27. Qd6+ {[%clk 0:02:08.7]} 27... Ka8 {[%clk
0:01:37.8]} 28. Rb3 {[%clk 0:02:08.3]} 28... Qc8 {[%clk 0:01:35.7]} 29. Qe7
{[%clk 0:02:05.2]} 29... Rf8 {[%clk 0:01:32.4]} 30. Rxb7 {[%clk 0:02:04.7]}
30... Qxb7 {[%clk 0:01:31.4]} 31. Qxf8+ {[%clk 0:02:04.7]} 31... Ka7 {[%clk
0:01:31.9]} 32. Qxg7 {[%clk 0:02:04.5]} 32... d4 {[%clk 0:01:32.4]} 33. h6
{[%clk 0:02:02.2]} 33... Qb5 {[%clk 0:01:19.7]} 34. Qxf7+ {[%clk 0:01:53.9]}
34... Ka8 {[%clk 0:01:03.2]} 35. Qxe6 {[%clk 0:01:46.8]} 35... d3 {[%clk
0:01:00.3]} 36. cxd3 {[%clk 0:01:45.8]} 36... Qxd3+ {[%clk 0:00:59.5]} 37. Ka2
{[%clk 0:01:46.4]} 37... Qc2 {[%clk 0:00:55.6]} 38. Qg8+ {[%clk 0:01:35.6]}
38... Ka7 {[%clk 0:00:55]} 39. h7 {[%clk 0:01:36.5]} 1-0